[Event "Early-Titled-Tuesday-Blitz-February-06-2024"]
[Site "Chess.com"]
[Date "2024.02.06"]
[Round "2"]
[White "Nick12772"]
[Black "CaspiIsrael"]
[Result "0-1"]
[WhiteElo "2390"]
[BlackElo "2689"]
[TimeControl "180+1"]
[EndTime "8:15:26 PST"]
[Termination "CaspiIsrael won by resignation"]

1. Nf3 {[%clk 0:03:00.9]} 1... Nf6 {[%clk 0:02:59.4]} 2. g3 {[%clk 0:03:01.3]}
2... g6 {[%clk 0:03:00.1]} 3. Bg2 {[%clk 0:03:02.2]} 3... Bg7 {[%clk 0:03:01]}
4. O-O {[%clk 0:03:01.7]} 4... O-O {[%clk 0:03:01.6]} 5. c4 {[%clk 0:03:02.1]}
5... c6 {[%clk 0:02:59.2]} 6. Nc3 {[%clk 0:03:01.8]} 6... d5 {[%clk 0:02:59.5]}
7. cxd5 {[%clk 0:03:02.7]} 7... cxd5 {[%clk 0:02:58.4]} 8. d4 {[%clk 0:03:02.8]}
8... Nc6 {[%clk 0:02:58.6]} 9. Ne5 {[%clk 0:03:02.3]} 9... e6 {[%clk 0:02:59.2]}
10. Nxc6 {[%clk 0:03:02.2]} 10... bxc6 {[%clk 0:02:58.8]} 11. Bf4 {[%clk
0:03:02.8]} 11... Nh5 {[%clk 0:02:48.7]} 12. Be3 {[%clk 0:03:01.4]} 12... c5
{[%clk 0:02:49]} 13. dxc5 {[%clk 0:02:53.8]} 13... Rb8 {[%clk 0:02:44.1]} 14.
Bd4 {[%clk 0:02:52.1]} 14... e5 {[%clk 0:02:40.6]} 15. Nxd5 {[%clk 0:01:58.1]}
15... exd4 {[%clk 0:02:40.2]} 16. c6 {[%clk 0:01:58.7]} 16... Rxb2 {[%clk
0:02:35]} 17. c7 {[%clk 0:01:52]} 17... Qd6 {[%clk 0:02:34.9]} 18. Qa4 {[%clk
0:01:29.4]} 18... Nf6 {[%clk 0:02:08.4]} 19. Nxf6+ {[%clk 0:01:01]} 19... Bxf6
{[%clk 0:02:09.3]} 20. Qxa7 {[%clk 0:01:01.5]} 20... Rxe2 {[%clk 0:02:08.5]} 21.
Rab1 {[%clk 0:00:50.4]} 21... d3 {[%clk 0:02:08.4]} 22. Rb6 {[%clk 0:00:46]}
22... Qd4 {[%clk 0:01:59.7]} 23. Qa5 {[%clk 0:00:30.1]} 23... d2 {[%clk
0:01:56.6]} 24. Rb4 {[%clk 0:00:16]} 24... d1=Q {[%clk 0:01:48.6]} 25. Rxd4
{[%clk 0:00:12.8]} 25... Qxd4 {[%clk 0:01:48.3]} 0-1

[Event "Early-Titled-Tuesday-Blitz-February-06-2024"]
[Site "Chess.com"]
[Date "2024.02.06"]
[Round "2"]
[White "Nuvas"]
[Black "unclear15"]
[Result "1-0"]
[WhiteElo "2790"]
[BlackElo "2387"]
[TimeControl "180+1"]
[EndTime "8:15:26 PST"]
[Termination "Nuvas won by resignation"]

1. d4 {[%clk 0:03:00.9]} 1... Nf6 {[%clk 0:02:59]} 2. c4 {[%clk 0:03:01.3]} 2...
c5 {[%clk 0:02:59]} 3. d5 {[%clk 0:03:01.5]} 3... e6 {[%clk 0:02:59.1]} 4. Nc3
{[%clk 0:03:01.7]} 4... exd5 {[%clk 0:02:59.5]} 5. cxd5 {[%clk 0:03:02.4]} 5...
d6 {[%clk 0:03:00.4]} 6. e4 {[%clk 0:03:02.9]} 6... g6 {[%clk 0:03:01.3]} 7. f4
{[%clk 0:03:03.4]} 7... Bg7 {[%clk 0:03:02]} 8. Bb5+ {[%clk 0:03:04.1]} 8... Bd7
{[%clk 0:03:01.1]} 9. e5 {[%clk 0:03:04.4]} 9... Ng8 {[%clk 0:02:22.2]} 10. Nf3
{[%clk 0:03:01.9]} 10... a6 {[%clk 0:02:20]} 11. Bxd7+ {[%clk 0:02:59.3]} 11...
Nxd7 {[%clk 0:02:20.9]} 12. O-O {[%clk 0:02:49.1]} 12... Nh6 {[%clk 0:02:16.6]}
13. Ne4 {[%clk 0:02:37.9]} 13... Nf5 {[%clk 0:02:02.8]} 14. g4 {[%clk
0:02:37.8]} 14... Nd4 {[%clk 0:01:48.1]} 15. Nxd6+ {[%clk 0:02:37.4]} 15... Kf8
{[%clk 0:01:47.9]} 16. Nxd4 {[%clk 0:02:34.6]} 16... cxd4 {[%clk 0:01:48.8]} 17.
b3 {[%clk 0:01:59.1]} 17... Kg8 {[%clk 0:01:36.6]} 18. Bb2 {[%clk 0:01:53.3]}
18... h5 {[%clk 0:01:29.5]} 19. g5 {[%clk 0:01:52.5]} 19... Nxe5 {[%clk
0:01:23]} 20. fxe5 {[%clk 0:01:51.8]} 20... Qxg5+ {[%clk 0:01:22.8]} 21. Kh1
{[%clk 0:01:51.4]} 21... Qxe5 {[%clk 0:01:17]} 22. Nxf7 {[%clk 0:01:44]} 22...
Qxd5+ {[%clk 0:01:11.7]} 23. Qf3 {[%clk 0:01:43.6]} 23... Qxf3+ {[%clk
0:01:02.1]} 24. Rxf3 {[%clk 0:01:44.5]} 24... Rf8 {[%clk 0:01:00]} 25. Raf1
{[%clk 0:01:42.2]} 25... Rh7 {[%clk 0:00:56.7]} 26. Ng5 {[%clk 0:01:42.5]} 26...
Rxf3 {[%clk 0:00:56.4]} 27. Rxf3 {[%clk 0:01:43.4]} 27... Rh6 {[%clk 0:00:54.7]}
28. Ne6 {[%clk 0:01:43.3]} 28... g5 {[%clk 0:00:54.2]} 29. Nxg7 {[%clk
0:01:43.1]} 29... Kxg7 {[%clk 0:00:54.8]} 30. Bxd4+ {[%clk 0:01:43.6]} 30... Kg8
{[%clk 0:00:55.5]} 31. Rf5 {[%clk 0:01:38]} 31... Rg6 {[%clk 0:00:54.4]} 32. Be3
{[%clk 0:01:38.4]} 32... Rc6 {[%clk 0:00:51.8]} 33. Rxg5+ {[%clk 0:01:37.8]}
33... Kf7 {[%clk 0:00:52.7]} 34. Rxh5 {[%clk 0:01:36]} 34... Kf6 {[%clk
0:00:53.6]} 35. Rh6+ {[%clk 0:01:35.9]} 35... Kf5 {[%clk 0:00:53.5]} 36. Rxc6
{[%clk 0:01:36.6]} 36... bxc6 {[%clk 0:00:54.4]} 37. Kg2 {[%clk 0:01:36.5]} 1-0

[Event "Early-Titled-Tuesday-Blitz-February-06-2024"]
[Site "Chess.com"]
[Date "2024.02.06"]
[Round "2"]
[White "Susal_De_Silva"]
[Black "B_nn_t"]
[Result "1-0"]
[WhiteElo "2768"]
[BlackElo "2383"]
[TimeControl "180+1"]
[EndTime "8:15:30 PST"]
[Termination "Susal_De_Silva won by checkmate"]

1. Nf3 {[%clk 0:03:00.9]} 1... d5 {[%clk 0:02:58.2]} 2. e3 {[%clk 0:03:00.7]}
2... Nc6 {[%clk 0:02:54.8]} 3. c4 {[%clk 0:03:00.5]} 3... Nf6 {[%clk 0:02:54.3]}
4. cxd5 {[%clk 0:03:00.4]} 4... Nxd5 {[%clk 0:02:54.4]} 5. d4 {[%clk 0:03:00.8]}
5... g6 {[%clk 0:02:50.5]} 6. Bc4 {[%clk 0:02:58.8]} 6... Bg7 {[%clk 0:02:49.7]}
7. Nc3 {[%clk 0:02:57.1]} 7... Nxc3 {[%clk 0:02:48.5]} 8. bxc3 {[%clk 0:02:58]}
8... O-O {[%clk 0:02:48.6]} 9. O-O {[%clk 0:02:58.7]} 9... e5 {[%clk 0:02:47.6]}
10. a4 {[%clk 0:02:56.8]} 10... exd4 {[%clk 0:02:44.5]} 11. cxd4 {[%clk
0:02:56.5]} 11... Re8 {[%clk 0:02:37]} 12. a5 {[%clk 0:02:56.3]} 12... a6 {[%clk
0:02:31]} 13. Qb3 {[%clk 0:02:55]} 13... Qf6 {[%clk 0:02:19]} 14. e4 {[%clk
0:02:35.4]} 14... Rxe4 {[%clk 0:02:08.8]} 15. Bg5 {[%clk 0:02:34.7]} 15... Qf5
{[%clk 0:01:55.3]} 16. Bd3 {[%clk 0:02:32.6]} 16... Nxd4 {[%clk 0:01:37.1]} 17.
Nxd4 {[%clk 0:02:24.5]} 17... Bxd4 {[%clk 0:01:38]} 18. Bxe4 {[%clk 0:02:22.5]}
18... Qxg5 {[%clk 0:01:33.8]} 19. Rad1 {[%clk 0:02:18.8]} 19... c5 {[%clk
0:01:32.9]} 20. Bd5 {[%clk 0:02:12.2]} 20... Qf6 {[%clk 0:01:30]} 21. Rd3 {[%clk
0:02:10.9]} 21... Rb8 {[%clk 0:01:28.8]} 22. Rf3 {[%clk 0:02:10.5]} 22... Bf5
{[%clk 0:01:28.1]} 23. g4 {[%clk 0:02:08.2]} 23... Qg5 {[%clk 0:01:27.9]} 24. h3
{[%clk 0:02:08.5]} 24... h5 {[%clk 0:01:27.9]} 25. Bxf7+ {[%clk 0:02:00.4]}
25... Kg7 {[%clk 0:01:27.1]} 26. Rg3 {[%clk 0:01:54.3]} 26... hxg4 {[%clk
0:01:26.4]} 27. hxg4 {[%clk 0:01:55.2]} 27... Be4 {[%clk 0:01:23.1]} 28. Qe6
{[%clk 0:01:24.6]} 28... Rh8 {[%clk 0:01:22]} 29. Qxe4 {[%clk 0:01:22.5]} 29...
Kxf7 {[%clk 0:01:20.2]} 30. Rf3+ {[%clk 0:01:08.1]} 30... Kg7 {[%clk 0:01:17.4]}
31. Qxb7+ {[%clk 0:01:06.6]} 31... Kg8 {[%clk 0:01:12.7]} 32. Qf7# {[%clk
0:01:06.3]} 1-0

[Event "Early-Titled-Tuesday-Blitz-February-06-2024"]
[Site "Chess.com"]
[Date "2024.02.06"]
[Round "2"]
[White "santosalberto1987"]
[Black "AradNazari"]
[Result "0-1"]
[WhiteElo "2554"]
[BlackElo "2778"]
[TimeControl "180+1"]
[EndTime "8:15:34 PST"]
[Termination "AradNazari won by resignation"]

1. e4 {[%clk 0:03:00.9]} 1... c5 {[%clk 0:02:33.2]} 2. Nf3 {[%clk 0:03:00.4]}
2... d6 {[%clk 0:02:33.6]} 3. Bb5+ {[%clk 0:02:59.7]} 3... Nd7 {[%clk
0:02:33.2]} 4. d4 {[%clk 0:02:59.7]} 4... cxd4 {[%clk 0:02:33.5]} 5. Qxd4 {[%clk
0:03:00.6]} 5... a6 {[%clk 0:02:34.2]} 6. Bxd7+ {[%clk 0:03:00.6]} 6... Bxd7
{[%clk 0:02:35.1]} 7. Nc3 {[%clk 0:03:01.1]} 7... e6 {[%clk 0:02:31.9]} 8. Bg5
{[%clk 0:03:00.4]} 8... Qc7 {[%clk 0:02:29.2]} 9. O-O-O {[%clk 0:03:00]} 9... h6
{[%clk 0:02:29.1]} 10. Bh4 {[%clk 0:03:00]} 10... Rc8 {[%clk 0:02:20.9]} 11. Kb1
{[%clk 0:02:56.4]} 11... Qc5 {[%clk 0:02:18.3]} 12. Qd2 {[%clk 0:02:54.4]} 12...
Nf6 {[%clk 0:02:14.2]} 13. e5 {[%clk 0:02:40.4]} 13... Nd5 {[%clk 0:01:23.4]}
14. Ne4 {[%clk 0:02:05.4]} 14... Qb6 {[%clk 0:01:15]} 15. exd6 {[%clk
0:02:04.2]} 15... f5 {[%clk 0:01:10.1]} 16. Ng3 {[%clk 0:01:48]} 16... g5 {[%clk
0:00:38.7]} 17. Nxg5 {[%clk 0:01:36]} 17... Bg7 {[%clk 0:00:38.8]} 18. c4 {[%clk
0:01:29.1]} 18... Nc3+ {[%clk 0:00:36.6]} 19. Ka1 {[%clk 0:01:28.7]} 19... Nxd1
{[%clk 0:00:36.7]} 20. Rxd1 {[%clk 0:01:25.4]} 20... hxg5 {[%clk 0:00:37.2]} 21.
Bxg5 {[%clk 0:01:23.6]} 21... Rxc4 {[%clk 0:00:37]} 22. h4 {[%clk 0:01:18.7]}
22... Rd4 {[%clk 0:00:36.2]} 0-1

[Event "Early-Titled-Tuesday-Blitz-February-06-2024"]
[Site "Chess.com"]
[Date "2024.02.06"]
[Round "2"]
[White "FMCarmona"]
[Black "viniciusrego"]
[Result "0-1"]
[WhiteElo "2153"]
[BlackElo "2441"]
[TimeControl "180+1"]
[EndTime "8:15:37 PST"]
[Termination "viniciusrego won by checkmate"]

1. e4 {[%clk 0:02:56.3]} 1... c5 {[%clk 0:02:59.4]} 2. Nf3 {[%clk 0:02:55.8]}
2... Nc6 {[%clk 0:02:59.9]} 3. d4 {[%clk 0:02:55.4]} 3... cxd4 {[%clk
0:03:00.8]} 4. Nxd4 {[%clk 0:02:55.4]} 4... g6 {[%clk 0:03:01.5]} 5. Nc3 {[%clk
0:02:54.3]} 5... Bg7 {[%clk 0:03:02]} 6. Be3 {[%clk 0:02:53.1]} 6... Nf6 {[%clk
0:03:02.4]} 7. Be2 {[%clk 0:02:44]} 7... O-O {[%clk 0:03:00.6]} 8. Qd2 {[%clk
0:02:43.2]} 8... d5 {[%clk 0:02:55.6]} 9. exd5 {[%clk 0:02:33.1]} 9... Nxd5
{[%clk 0:02:56.5]} 10. Nxc6 {[%clk 0:02:32.4]} 10... bxc6 {[%clk 0:02:54.5]} 11.
Bd4 {[%clk 0:02:30.9]} 11... e5 {[%clk 0:02:39.5]} 12. Bc5 {[%clk 0:02:30.6]}
12... Be6 {[%clk 0:02:32.6]} 13. O-O-O {[%clk 0:02:04.7]} 13... Re8 {[%clk
0:02:25.3]} 14. Bc4 {[%clk 0:02:01.8]} 14... Qa5 {[%clk 0:02:19.3]} 15. Nxd5
{[%clk 0:01:15.1]} 15... Qxc5 {[%clk 0:02:17.6]} 16. Nc7 {[%clk 0:01:07.2]}
16... Qxc4 {[%clk 0:02:16.5]} 17. Nxa8 {[%clk 0:00:56.1]} 17... Qxa2 {[%clk
0:02:13]} 18. Qe3 {[%clk 0:00:23.1]} 18... Rxa8 {[%clk 0:02:09.7]} 19. Rhe1
{[%clk 0:00:13.2]} 19... Rb8 {[%clk 0:01:54.3]} 20. b3 {[%clk 0:00:11.2]} 20...
Qa3+ {[%clk 0:01:50]} 21. Kd2 {[%clk 0:00:10.7]} 21... Qa6 {[%clk 0:01:41.9]}
22. Ra1 {[%clk 0:00:09]} 22... Rd8+ {[%clk 0:01:42.3]} 23. Kc3 {[%clk
0:00:07.2]} 23... e4+ {[%clk 0:01:40.4]} 24. Kb4 {[%clk 0:00:07.5]} 24... Qb5+
{[%clk 0:01:38.6]} 25. Ka3 {[%clk 0:00:07.2]} 25... Qa5# {[%clk 0:01:38.1]} 0-1

[Event "Early-Titled-Tuesday-Blitz-February-06-2024"]
[Site "Chess.com"]
[Date "2024.02.06"]
[Round "2"]
[White "jefferyx"]
[Black "chucksterf10"]
[Result "1-0"]
[WhiteElo "3009"]
[BlackElo "2646"]
[TimeControl "180+1"]
[EndTime "8:15:39 PST"]
[Termination "jefferyx won by checkmate"]

1. d4 {[%clk 0:03:00.9]} 1... d5 {[%clk 0:03:00.4]} 2. c4 {[%clk 0:03:01]} 2...
dxc4 {[%clk 0:03:01.3]} 3. Nf3 {[%clk 0:03:01]} 3... Nf6 {[%clk 0:03:01.1]} 4.
e3 {[%clk 0:03:01.5]} 4... e6 {[%clk 0:03:01.8]} 5. Bxc4 {[%clk 0:03:01.6]} 5...
c5 {[%clk 0:03:02.4]} 6. O-O {[%clk 0:03:01.6]} 6... a6 {[%clk 0:03:03]} 7. Nc3
{[%clk 0:03:01.1]} 7... Nc6 {[%clk 0:03:02.1]} 8. d5 {[%clk 0:02:57.5]} 8...
exd5 {[%clk 0:03:01]} 9. Nxd5 {[%clk 0:02:57.2]} 9... b5 {[%clk 0:03:00.8]} 10.
Nxf6+ {[%clk 0:02:51.6]} 10... Qxf6 {[%clk 0:03:01.7]} 11. Bd5 {[%clk
0:02:52.1]} 11... Bb7 {[%clk 0:03:02]} 12. e4 {[%clk 0:02:52]} 12... Be7 {[%clk
0:02:51.6]} 13. Re1 {[%clk 0:02:12.8]} 13... Rd8 {[%clk 0:02:40.2]} 14. a4
{[%clk 0:02:08]} 14... Nb4 {[%clk 0:02:35.3]} 15. axb5 {[%clk 0:02:08]} 15...
axb5 {[%clk 0:02:33.8]} 16. Bg5 {[%clk 0:02:08.1]} 16... Qb6 {[%clk 0:02:23.2]}
17. Bxe7 {[%clk 0:02:09]} 17... Kxe7 {[%clk 0:02:23.7]} 18. Qc1 {[%clk
0:01:51.9]} 18... Rhe8 {[%clk 0:02:17.7]} 19. Bxb7 {[%clk 0:01:44.8]} 19... Nd3
{[%clk 0:02:16.2]} 20. Qg5+ {[%clk 0:01:44.2]} 20... Kf8 {[%clk 0:02:15.9]} 21.
Bd5 {[%clk 0:01:42.2]} 21... Nxe1 {[%clk 0:02:15.5]} 22. Rxe1 {[%clk 0:01:43.1]}
22... h6 {[%clk 0:01:57.4]} 23. Qf5 {[%clk 0:01:30]} 23... Re7 {[%clk
0:01:53.2]} 24. b3 {[%clk 0:01:24.5]} 24... g6 {[%clk 0:01:49.6]} 25. Qf4 {[%clk
0:01:24.2]} 25... Kg7 {[%clk 0:01:49.5]} 26. Rc1 {[%clk 0:01:17.8]} 26... Rc8
{[%clk 0:01:46.2]} 27. h4 {[%clk 0:01:09.8]} 27... Qf6 {[%clk 0:01:45.5]} 28.
Qxf6+ {[%clk 0:01:03.3]} 28... Kxf6 {[%clk 0:01:46.4]} 29. Nd4 {[%clk
0:01:01.9]} 29... b4 {[%clk 0:01:38]} 30. Nc6 {[%clk 0:01:01.7]} 30... Rec7
{[%clk 0:01:31.1]} 31. Rxc5 {[%clk 0:01:01.4]} 31... Ra7 {[%clk 0:01:31.9]} 32.
Rb5 {[%clk 0:00:55.3]} 32... Ra1+ {[%clk 0:01:31.5]} 33. Kh2 {[%clk 0:00:55.8]}
33... g5 {[%clk 0:01:27.4]} 34. h5 {[%clk 0:00:53.5]} 34... Rca8 {[%clk
0:01:24]} 35. Rxb4 {[%clk 0:00:52.1]} 35... R8a2 {[%clk 0:01:24.2]} 36. Kg3
{[%clk 0:00:51.6]} 36... Rh1 {[%clk 0:01:24.4]} 37. Rb7 {[%clk 0:00:49.5]} 37...
g4 {[%clk 0:01:20.5]} 38. Rxf7+ {[%clk 0:00:49.3]} 38... Kg5 {[%clk 0:01:20.6]}
39. Rf5# {[%clk 0:00:50.2]} 1-0

[Event "Early-Titled-Tuesday-Blitz-February-06-2024"]
[Site "Chess.com"]
[Date "2024.02.06"]
[Round "2"]
[White "Actuary44"]
[Black "aranibos"]
[Result "1-0"]
[WhiteElo "2487"]
[BlackElo "2256"]
[TimeControl "180+1"]
[EndTime "8:15:43 PST"]
[Termination "Actuary44 won by checkmate"]

1. e4 {[%clk 0:03:00.9]} 1... c5 {[%clk 0:02:59.1]} 2. d4 {[%clk 0:03:01]} 2...
d6 {[%clk 0:02:59.6]} 3. dxc5 {[%clk 0:03:00.9]} 3... Qa5+ {[%clk 0:02:59.2]} 4.
Nc3 {[%clk 0:03:01.1]} 4... Qxc5 {[%clk 0:02:59.4]} 5. Be3 {[%clk 0:03:01.7]}
5... Qa5 {[%clk 0:02:57.8]} 6. Qd2 {[%clk 0:03:01.6]} 6... Nc6 {[%clk
0:02:50.9]} 7. O-O-O {[%clk 0:03:00.7]} 7... Nf6 {[%clk 0:02:43.5]} 8. f3 {[%clk
0:03:00.9]} 8... e6 {[%clk 0:02:38.9]} 9. g4 {[%clk 0:03:00.9]} 9... Be7 {[%clk
0:02:37.2]} 10. g5 {[%clk 0:03:01.3]} 10... Nd7 {[%clk 0:02:37.7]} 11. h4 {[%clk
0:02:59.9]} 11... a6 {[%clk 0:02:31.1]} 12. h5 {[%clk 0:03:00.2]} 12... Nde5
{[%clk 0:02:12.5]} 13. Qg2 {[%clk 0:02:39.5]} 13... b5 {[%clk 0:02:02.8]} 14. f4
{[%clk 0:02:39.5]} 14... b4 {[%clk 0:01:57.7]} 15. Nb1 {[%clk 0:02:35.7]} 15...
Qxa2 {[%clk 0:01:43.5]} 16. fxe5 {[%clk 0:02:35.7]} 16... Nxe5 {[%clk
0:01:42.9]} 17. g6 {[%clk 0:02:25.6]} 17... hxg6 {[%clk 0:01:42.1]} 18. hxg6
{[%clk 0:02:25.2]} 18... Rxh1 {[%clk 0:01:40.2]} 19. gxf7+ {[%clk 0:02:24.8]}
19... Kxf7 {[%clk 0:01:35.9]} 20. Qxh1 {[%clk 0:02:25.7]} 20... Bd7 {[%clk
0:01:31.5]} 21. Nf3 {[%clk 0:02:24.7]} 21... Nxf3 {[%clk 0:01:20.3]} 22. Qxf3+
{[%clk 0:02:25.6]} 22... Kg8 {[%clk 0:01:20]} 23. e5 {[%clk 0:02:14.4]} 23... d5
{[%clk 0:01:17.7]} 24. Bd3 {[%clk 0:02:08.1]} 24... b3 {[%clk 0:01:01.6]} 25. c3
{[%clk 0:01:56.4]} 25... Rc8 {[%clk 0:00:34.9]} 26. Qh5 {[%clk 0:01:52.1]} 26...
Ba3 {[%clk 0:00:20.9]} 27. Bh7+ {[%clk 0:01:26.5]} 27... Kf8 {[%clk 0:00:20.2]}
28. Rf1+ {[%clk 0:01:26.4]} 28... Ke7 {[%clk 0:00:20.7]} 29. Bg5# {[%clk
0:01:26.7]} 1-0

[Event "Early-Titled-Tuesday-Blitz-February-06-2024"]
[Site "Chess.com"]
[Date "2024.02.06"]
[Round "2"]
[White "NFChess13"]
[Black "FairChess_on_YouTube"]
[Result "0-1"]
[WhiteElo "2666"]
[BlackElo "3087"]
[TimeControl "180+1"]
[EndTime "8:15:49 PST"]
[Termination "FairChess_on_YouTube won by resignation"]

1. c4 {[%clk 0:03:00.9]} 1... Nf6 {[%clk 0:02:58.2]} 2. g3 {[%clk 0:02:59.9]}
2... e6 {[%clk 0:02:57.9]} 3. Bg2 {[%clk 0:02:58.6]} 3... d5 {[%clk 0:02:58.5]}
4. Nf3 {[%clk 0:02:57.7]} 4... Be7 {[%clk 0:02:58.2]} 5. O-O {[%clk 0:02:56.3]}
5... O-O {[%clk 0:02:58.8]} 6. b3 {[%clk 0:02:55.2]} 6... c6 {[%clk 0:02:57.7]}
7. Bb2 {[%clk 0:02:53.8]} 7... b6 {[%clk 0:02:58.3]} 8. d3 {[%clk 0:02:49.3]}
8... Bb7 {[%clk 0:02:58.6]} 9. Nbd2 {[%clk 0:02:48.8]} 9... Nbd7 {[%clk
0:02:54.8]} 10. cxd5 {[%clk 0:02:45.6]} 10... cxd5 {[%clk 0:02:53.9]} 11. Rc1
{[%clk 0:02:43.9]} 11... Rc8 {[%clk 0:02:53.5]} 12. Rxc8 {[%clk 0:02:36.8]}
12... Qxc8 {[%clk 0:02:54.4]} 13. Qa1 {[%clk 0:02:36.7]} 13... Qa8 {[%clk
0:02:44.5]} 14. Rc1 {[%clk 0:02:33.3]} 14... Rc8 {[%clk 0:02:44.4]} 15. Ne5
{[%clk 0:02:29.2]} 15... Nxe5 {[%clk 0:02:41.9]} 16. Bxe5 {[%clk 0:02:28.8]}
16... h6 {[%clk 0:02:40.6]} 17. Nf3 {[%clk 0:02:20.2]} 17... a5 {[%clk
0:02:32.9]} 18. a4 {[%clk 0:02:16.8]} 18... Rxc1+ {[%clk 0:02:23.5]} 19. Qxc1
{[%clk 0:02:16.6]} 19... Nd7 {[%clk 0:02:24.1]} 20. Bb2 {[%clk 0:02:03.2]} 20...
Qd8 {[%clk 0:02:21.6]} 21. Nd4 {[%clk 0:01:54.8]} 21... Nc5 {[%clk 0:02:20.3]}
22. Qc2 {[%clk 0:01:50.5]} 22... Bf6 {[%clk 0:02:18.3]} 23. Nb5 {[%clk
0:01:46.5]} 23... Bxb2 {[%clk 0:02:12.3]} 24. Qxb2 {[%clk 0:01:47.4]} 24... Ba6
{[%clk 0:02:12.8]} 25. d4 {[%clk 0:01:37.4]} 25... Nb7 {[%clk 0:02:02]} 26. Nc3
{[%clk 0:01:36.6]} 26... Nd6 {[%clk 0:02:02.2]} 27. e3 {[%clk 0:01:35.8]} 27...
Bd3 {[%clk 0:01:55.6]} 28. Bf1 {[%clk 0:01:35.7]} 28... Bf5 {[%clk 0:01:53.9]}
29. Nb5 {[%clk 0:01:33.8]} 29... Nxb5 {[%clk 0:01:39.6]} 30. Bxb5 {[%clk
0:01:34.7]} 30... Qd6 {[%clk 0:01:33.1]} 31. Qc3 {[%clk 0:01:32.2]} 31... Qb4
{[%clk 0:01:29.9]} 32. Qb2 {[%clk 0:01:21.2]} 32... Bh3 {[%clk 0:01:15.1]} 33.
Qb1 {[%clk 0:01:12]} 33... Qd2 {[%clk 0:01:14.2]} 34. Bf1 {[%clk 0:01:10.1]}
34... Bf5 {[%clk 0:01:12.5]} 35. Qa1 {[%clk 0:01:05.3]} 35... Bc2 {[%clk
0:01:09.8]} 36. Qb2 {[%clk 0:01:00.3]} 36... Qd1 {[%clk 0:01:09.6]} 37. Kg2
{[%clk 0:00:58]} 37... Be4+ {[%clk 0:01:09.1]} 0-1

[Event "Early-Titled-Tuesday-Blitz-February-06-2024"]
[Site "Chess.com"]
[Date "2024.02.06"]
[Round "2"]
[White "RianKapriaga"]
[Black "ural58"]
[Result "1-0"]
[WhiteElo "2278"]
[BlackElo "2477"]
[TimeControl "180+1"]
[EndTime "8:15:50 PST"]
[Termination "RianKapriaga won by resignation"]

1. d4 {[%clk 0:02:55.6]} 1... d5 {[%clk 0:02:59.2]} 2. Nf3 {[%clk 0:02:55.9]}
2... Nc6 {[%clk 0:02:56.9]} 3. Bf4 {[%clk 0:02:55]} 3... Bg4 {[%clk 0:02:56.3]}
4. e3 {[%clk 0:02:55.1]} 4... e6 {[%clk 0:02:46.8]} 5. Be2 {[%clk 0:02:55]} 5...
Bd6 {[%clk 0:02:40.4]} 6. Bg3 {[%clk 0:02:52.5]} 6... f5 {[%clk 0:02:36]} 7.
Nbd2 {[%clk 0:02:49.6]} 7... Qf6 {[%clk 0:02:33.7]} 8. c3 {[%clk 0:02:47]} 8...
f4 {[%clk 0:02:31.6]} 9. exf4 {[%clk 0:02:44.3]} 9... Bxf4 {[%clk 0:02:31.7]}
10. O-O {[%clk 0:02:43]} 10... O-O-O {[%clk 0:02:26.2]} 11. b4 {[%clk
0:02:41.2]} 11... Nge7 {[%clk 0:02:14.9]} 12. b5 {[%clk 0:02:40.1]} 12... Na5
{[%clk 0:02:10.4]} 13. Re1 {[%clk 0:02:31.5]} 13... Bxg3 {[%clk 0:02:06]} 14.
hxg3 {[%clk 0:02:30.7]} 14... h5 {[%clk 0:02:00.7]} 15. Qa4 {[%clk 0:02:20.6]}
15... b6 {[%clk 0:01:56.6]} 16. Nb3 {[%clk 0:02:19.8]} 16... h4 {[%clk 0:01:52]}
17. Nxa5 {[%clk 0:01:36]} 17... bxa5 {[%clk 0:01:50.7]} 18. Qxa5 {[%clk
0:00:53.4]} 18... Bxf3 {[%clk 0:01:49.4]} 19. Qa6+ {[%clk 0:00:45.5]} 19... Kd7
{[%clk 0:01:48.7]} 20. Bxf3 {[%clk 0:00:44.5]} 20... hxg3 {[%clk 0:01:47.2]} 21.
fxg3 {[%clk 0:00:44]} 21... Rh6 {[%clk 0:01:33.4]} 22. Re5 {[%clk 0:00:31.5]}
22... Rdh8 {[%clk 0:01:28.5]} 23. Kf2 {[%clk 0:00:30.5]} 23... Qg5 {[%clk
0:01:22.4]} 24. Rxg5 {[%clk 0:00:18.5]} 1-0

[Event "Early-Titled-Tuesday-Blitz-February-06-2024"]
[Site "Chess.com"]
[Date "2024.02.06"]
[Round "2"]
[White "javirec"]
[Black "LangesNasenhaar"]
[Result "0-1"]
[WhiteElo "2263"]
[BlackElo "2494"]
[TimeControl "180+1"]
[EndTime "8:15:53 PST"]
[Termination "LangesNasenhaar won by resignation"]

1. e4 {[%clk 0:03:00.9]} 1... g6 {[%clk 0:03:00.2]} 2. d4 {[%clk 0:02:59.7]}
2... Bg7 {[%clk 0:03:00.7]} 3. c3 {[%clk 0:02:57.3]} 3... c6 {[%clk 0:03:00.8]}
4. Bd3 {[%clk 0:02:57.3]} 4... d5 {[%clk 0:03:00.4]} 5. e5 {[%clk 0:02:56.9]}
5... f6 {[%clk 0:02:58.5]} 6. f4 {[%clk 0:02:54]} 6... Nh6 {[%clk 0:02:58.8]} 7.
Nf3 {[%clk 0:02:52.9]} 7... O-O {[%clk 0:02:55.5]} 8. O-O {[%clk 0:02:51.1]}
8... Bg4 {[%clk 0:02:48.5]} 9. h3 {[%clk 0:02:37.8]} 9... Bxf3 {[%clk
0:02:48.6]} 10. Rxf3 {[%clk 0:02:38.7]} 10... fxe5 {[%clk 0:02:46.3]} 11. fxe5
{[%clk 0:02:39.6]} 11... Rxf3 {[%clk 0:02:42.1]} 12. Qxf3 {[%clk 0:02:39.4]}
12... e6 {[%clk 0:02:39.5]} 13. Be3 {[%clk 0:02:19.1]} 13... Nd7 {[%clk
0:02:37.9]} 14. Nd2 {[%clk 0:02:18.5]} 14... Qe7 {[%clk 0:02:23.3]} 15. Rf1
{[%clk 0:02:12.6]} 15... Rf8 {[%clk 0:02:17.1]} 16. Qe2 {[%clk 0:02:12.1]} 16...
Nf5 {[%clk 0:02:00.1]} 17. Bf4 {[%clk 0:01:50.7]} 17... c5 {[%clk 0:01:52.3]}
18. g4 {[%clk 0:01:40.2]} 18... Nh6 {[%clk 0:01:52.5]} 19. Be3 {[%clk
0:01:32.3]} 19... cxd4 {[%clk 0:01:44]} 20. cxd4 {[%clk 0:01:33.2]} 20... Rxf1+
{[%clk 0:01:41.3]} 21. Qxf1 {[%clk 0:01:31.6]} 21... Qh4 {[%clk 0:01:30]} 22.
Qg2 {[%clk 0:01:24.7]} 22... Qe7 {[%clk 0:01:16.1]} 23. Qf1 {[%clk 0:01:19.6]}
23... Nf7 {[%clk 0:01:06.2]} 24. Qc1 {[%clk 0:01:09]} 24... Qh4 {[%clk
0:00:51.8]} 25. Qf1 {[%clk 0:01:00.6]} 25... Qg3+ {[%clk 0:00:48.3]} 26. Kh1
{[%clk 0:00:59.6]} 26... Qxe3 {[%clk 0:00:48.3]} 27. Nb3 {[%clk 0:00:57.4]}
27... Ng5 {[%clk 0:00:42.2]} 0-1